{"text_format":"3","workbook":"xlsx","n_sheets":7,"sheets":["Segunda-feira","Terça-feira","Quarta-feira","Quinta-feira","Sexta-feira","Sábado","Domingo"],"not_rendered":{"defined_names":21},"read":"whole","date_system":"1900"}

{"sheet":"Segunda-feira","index":0,"n_rows":10,"n_cols":13,"rows_kept":10,"merged":[[0,1,0,4],[1,2,1,4],[2,2,2,4]]}
[null,"Cronograma de turnos"]
[null,"Para a semana de: ","Data"]
[null,"Nome do departamento: ","Nome"]
[]
[null,"SEGUNDA-FEIRA","7:00","8:00","9:00","10:00","11:00","12:00","13:00","14:00","15:00","Licença médica?","TOTAL"]
[null,"Nome 1","gerente","gerente","gerente","gerente","gerente","gerente","gerente","gerente","gerente",null,{"$f":"COUNTIF(Segunda[[#This Row],[7:00]:[15:00]],\"*\")","v":9}]
[null,"Nome 2",null,"caixa","caixa","caixa","caixa",{"$nulls":5},{"$f":"COUNTIF(Segunda[[#This Row],[7:00]:[15:00]],\"*\")","v":4}]
[null,"Nome 3",null,"recepção","recepção","recepção","recepção ","recepção","recepção","recepção",null,null,{"$f":"COUNTIF(Segunda[[#This Row],[7:00]:[15:00]],\"*\")","v":7}]
[null,"Nome 4",null,"recepção","recepção","recepção","recepção ","recepção","recepção","recepção",null,null,{"$f":"COUNTIF(Segunda[[#This Row],[7:00]:[15:00]],\"*\")","v":7}]
[null,"Nome 5",{"$nulls":9},"Licença médica",{"$f":"COUNTIF(Segunda[[#This Row],[7:00]:[15:00]],\"*\")","v":0}]

{"sheet":"Terça-feira","index":1,"n_rows":10,"n_cols":13,"rows_kept":10,"merged":[[0,1,0,4],[1,2,1,4],[2,2,2,4]]}
[null,"Cronograma de turnos"]
[null,"Para a semana de: ",{"$f":"'Segunda-feira'!C2","v":"Data"}]
[null,"Nome do departamento: ",{"$f":"'Segunda-feira'!C3","v":"Nome"}]
[]
[null,"TERÇA-FEIRA","7:00","8:00","9:00","10:00","11:00","12:00","13:00","14:00","15:00","Licença médica?","TOTAL"]
[null,"Nome 1","gerente","gerente","gerente","gerente","gerente","gerente","gerente","gerente","gerente",null,{"$f":"COUNTIF(Terça[[#This Row],[7:00]:[15:00]],\"*\")","v":9}]
[null,"Nome 2",null,"caixa","caixa","caixa","caixa",{"$nulls":5},{"$f":"COUNTIF(Terça[[#This Row],[7:00]:[15:00]],\"*\")","v":4}]
[null,"Nome 3",null,"recepção","recepção","recepção","recepção ","recepção","recepção","recepção",null,null,{"$f":"COUNTIF(Terça[[#This Row],[7:00]:[15:00]],\"*\")","v":7}]
[null,"Nome 4",null,"recepção","recepção","recepção","recepção ","recepção","recepção","recepção",null,null,{"$f":"COUNTIF(Terça[[#This Row],[7:00]:[15:00]],\"*\")","v":7}]
[null,"Nome 5",{"$nulls":9},"Licença médica",{"$f":"COUNTIF(Terça[[#This Row],[7:00]:[15:00]],\"*\")","v":0}]

{"sheet":"Quarta-feira","index":2,"n_rows":10,"n_cols":13,"rows_kept":10,"merged":[[0,1,0,4],[1,2,1,4],[2,2,2,4]]}
[null,"Cronograma de turnos"]
[null,"Para a semana de: ",{"$f":"'Segunda-feira'!C2","v":"Data"}]
[null,"Nome do departamento: ",{"$f":"'Segunda-feira'!C3","v":"Nome"}]
[]
[null,"QUARTA-FEIRA","7:00","8:00","9:00","10:00","11:00","12:00","13:00","14:00","15:00","Licença médica?","TOTAL"]
[null,"Nome 1","gerente","gerente","gerente","gerente","gerente","gerente","gerente","gerente","gerente",null,{"$f":"COUNTIF(Quarta[[#This Row],[7:00]:[15:00]],\"*\")","v":9}]
[null,"Nome 2",null,"caixa","caixa","caixa","caixa",{"$nulls":5},{"$f":"COUNTIF(Quarta[[#This Row],[7:00]:[15:00]],\"*\")","v":4}]
[null,"Nome 3",null,"recepção","recepção","recepção","recepção ","recepção","recepção","recepção",null,null,{"$f":"COUNTIF(Quarta[[#This Row],[7:00]:[15:00]],\"*\")","v":7}]
[null,"Nome 4",null,"recepção","recepção","recepção","recepção ","recepção","recepção","recepção",null,null,{"$f":"COUNTIF(Quarta[[#This Row],[7:00]:[15:00]],\"*\")","v":7}]
[null,"Nome 5",{"$nulls":9},"Licença médica",{"$f":"COUNTIF(Quarta[[#This Row],[7:00]:[15:00]],\"*\")","v":0}]

{"sheet":"Quinta-feira","index":3,"n_rows":10,"n_cols":13,"rows_kept":10,"merged":[[0,1,0,4],[1,2,1,4],[2,2,2,4]]}
[null,"Cronograma de turnos"]
[null,"Para a semana de: ",{"$f":"'Segunda-feira'!C2","v":"Data"}]
[null,"Nome do departamento: ",{"$f":"'Segunda-feira'!C3","v":"Nome"}]
[]
[null,"QUINTA-FEIRA","7:00","8:00","9:00","10:00","11:00","12:00","13:00","14:00","15:00","Licença médica?","TOTAL"]
[null,"Nome 1","gerente","gerente","gerente","gerente","gerente","gerente","gerente","gerente","gerente",null,{"$f":"COUNTIF(Quinta[[#This Row],[7:00]:[15:00]],\"*\")","v":9}]
[null,"Nome 2",null,"caixa","caixa","caixa","caixa",{"$nulls":5},{"$f":"COUNTIF(Quinta[[#This Row],[7:00]:[15:00]],\"*\")","v":4}]
[null,"Nome 3",null,"recepção","recepção","recepção","recepção ","recepção","recepção","recepção",null,null,{"$f":"COUNTIF(Quinta[[#This Row],[7:00]:[15:00]],\"*\")","v":7}]
[null,"Nome 4",null,"recepção","recepção","recepção","recepção ","recepção","recepção","recepção",null,null,{"$f":"COUNTIF(Quinta[[#This Row],[7:00]:[15:00]],\"*\")","v":7}]
[null,"Nome 5",{"$nulls":9},"Licença médica",{"$f":"COUNTIF(Quinta[[#This Row],[7:00]:[15:00]],\"*\")","v":0}]

{"sheet":"Sexta-feira","index":4,"n_rows":10,"n_cols":13,"rows_kept":10,"merged":[[0,1,0,4],[1,2,1,4],[2,2,2,4]]}
[null,"Cronograma de turnos"]
[null,"Para a semana de: ",{"$f":"'Segunda-feira'!C2","v":"Data"}]
[null,"Nome do departamento: ",{"$f":"'Segunda-feira'!C3","v":"Nome"}]
[]
[null,"SEXTA-FEIRA","7:00","8:00","9:00","10:00","11:00","12:00","13:00","14:00","15:00","Licença médica?","TOTAL"]
[null,"Nome 1","gerente","gerente","gerente","gerente","gerente","gerente","gerente","gerente","gerente",null,{"$f":"COUNTIF(Sexta[[#This Row],[7:00]:[15:00]],\"*\")","v":9}]
[null,"Nome 2",null,"caixa","caixa","caixa","caixa",{"$nulls":5},{"$f":"COUNTIF(Sexta[[#This Row],[7:00]:[15:00]],\"*\")","v":4}]
[null,"Nome 3",null,"recepção","recepção","recepção","recepção ","recepção","recepção","recepção",null,null,{"$f":"COUNTIF(Sexta[[#This Row],[7:00]:[15:00]],\"*\")","v":7}]
[null,"Nome 4",null,"recepção","recepção","recepção","recepção ","recepção","recepção","recepção",null,null,{"$f":"COUNTIF(Sexta[[#This Row],[7:00]:[15:00]],\"*\")","v":7}]
[null,"Nome 5",{"$nulls":9},"Licença médica",{"$f":"COUNTIF(Sexta[[#This Row],[7:00]:[15:00]],\"*\")","v":0}]

{"sheet":"Sábado","index":5,"n_rows":10,"n_cols":13,"rows_kept":10,"merged":[[0,1,0,4],[1,2,1,4],[2,2,2,4]]}
[null,"Cronograma de turnos"]
[null,"Para a semana de: ",{"$f":"'Segunda-feira'!C2","v":"Data"}]
[null,"Nome do departamento: ",{"$f":"'Segunda-feira'!C3","v":"Nome"}]
[]
[null,"SÁBADO","7:00","8:00","9:00","10:00","11:00","12:00","13:00","14:00","15:00","Licença médica?","TOTAL"]
[null,"Nome 1","gerente","gerente","gerente","gerente","gerente","gerente","gerente","gerente","gerente",null,{"$f":"COUNTIF(Sábado[[#This Row],[7:00]:[15:00]],\"*\")","v":9}]
[null,"Nome 2",null,"caixa","caixa","caixa","caixa",{"$nulls":5},{"$f":"COUNTIF(Sábado[[#This Row],[7:00]:[15:00]],\"*\")","v":4}]
[null,"Nome 3",null,"recepção","recepção","recepção","recepção ","recepção","recepção","recepção",null,null,{"$f":"COUNTIF(Sábado[[#This Row],[7:00]:[15:00]],\"*\")","v":7}]
[null,"Nome 4",null,"recepção","recepção","recepção","recepção ","recepção","recepção","recepção",null,null,{"$f":"COUNTIF(Sábado[[#This Row],[7:00]:[15:00]],\"*\")","v":7}]
[null,"Nome 5",{"$nulls":9},"Licença médica",{"$f":"COUNTIF(Sábado[[#This Row],[7:00]:[15:00]],\"*\")","v":0}]

{"sheet":"Domingo","index":6,"n_rows":10,"n_cols":13,"rows_kept":10,"merged":[[0,1,0,4],[1,2,1,4],[2,2,2,4]]}
[null,"Cronograma de turnos"]
[null,"Para a semana de: ",{"$f":"'Segunda-feira'!C2","v":"Data"}]
[null,"Nome do departamento: ",{"$f":"'Segunda-feira'!C3","v":"Nome"}]
[]
[null,"DOMINGO","7:00","8:00","9:00","10:00","11:00","12:00","13:00","14:00","15:00","Licença médica?","TOTAL"]
[null,"Nome 1","gerente","gerente","gerente","gerente","gerente","gerente","gerente","gerente","gerente",null,{"$f":"COUNTIF(Domingo[[#This Row],[7:00]:[15:00]],\"*\")","v":9}]
[null,"Nome 2",null,"caixa","caixa","caixa","caixa",{"$nulls":5},{"$f":"COUNTIF(Domingo[[#This Row],[7:00]:[15:00]],\"*\")","v":4}]
[null,"Nome 3",null,"recepção","recepção","recepção","recepção ","recepção","recepção","recepção",null,null,{"$f":"COUNTIF(Domingo[[#This Row],[7:00]:[15:00]],\"*\")","v":7}]
[null,"Nome 4",null,"recepção","recepção","recepção","recepção ","recepção","recepção","recepção",null,null,{"$f":"COUNTIF(Domingo[[#This Row],[7:00]:[15:00]],\"*\")","v":7}]
[null,"Nome 5",{"$nulls":9},"Licença médica",{"$f":"COUNTIF(Domingo[[#This Row],[7:00]:[15:00]],\"*\")","v":0}]